bitfinex-derivatives/quotes_ETHF0:USTF0_20250530
["timestamp","ask_amount","ask_price","bid_price","bid_amount"]
[1748631799817,8.98176,2583.6,2583.5,1.81e-06]
[1748631803331,3.98176,2583.6,2583.5,1.81e-06]
[1748631803732,8.53376,2583.6,2583.5,1.81e-06]
[1748631804032,0.77396,2583.6,2583.5,1.81e-06]
[1748631804337,3.2078,2583.9,2583.6,0.77393]
[1748631804530,0.00580181,2584.0,2583.5,1.81e-06]
[1748631804731,0.77387,2583.9,2583.8,3.98168]
[1748631804931,0.77387,2583.9,2583.8,3.2078]
[1748631809228,0.00580181,2584.0,2583.8,3.2078]
[1748631809229,0.77966181,2584.0,2583.8,3.2078]
[1748631809432,0.00580181,2584.0,2583.9,1.39207]
[1748631809740,0.77964181,2584.0,2583.9,0.6182]
[1748631810137,0.00580181,2584.0,2583.9,1.39207]
[1748631810441,6.48607,2584.7,2583.9,6.39207]
[1748631810640,3.2078,2584.9,2584.2,3.2078]
[1748631810836,4.552,2584.8,2584.2,3.2078]
[1748631811137,1.93407,2584.7,2584.2,3.98156]
[1748631811343,0.77375,2584.3,2584.2,3.98156]
[1748631811544,0.77374,2584.4,2584.3,0.77375]
[1748631812245,0.77375,2584.3,2584.2,3.98155]
[1748631812439,0.77374,2584.4,2584.3,0.77374]
[1748631814447,0.77375,2584.3,2584.2,3.2078]
[1748631814942,0.77375,2584.3,2584.2,3.98158]
[1748631815345,0.77375,2584.3,2584.2,3.2078]
[1748631816645,0.77375,2584.3,2584.2,5.47096697]
[1748631819343,0.77375,2584.3,2584.2,3.2078]
[1748631822947,0.77381,2584.1,2584.0,3.03698697]
[1748631824949,0.77381,2584.1,2584.0,4.26428697]
[1748631825753,0.7738,2584.2,2584.1,0.77378]
[1748631826649,0.77381,2584.1,2584.0,3.49046697]
[1748631826855,0.77381,2584.1,2584.0,1.2273]
[1748631828456,5.15981,2584.1,2584.0,1.2273]
[1748631828750,0.7738,2584.2,2584.0,1.2273]
[1748631828960,0.77381,2584.1,2584.0,2.00111]
[1748631829362,0.77381,2584.1,2584.0,1.2273]
[1748631829558,0.77384,2584.0,2583.9,3.2078]
[1748631830761,0.96614,2584.0,2583.9,3.2078]
[1748631831056,5.35314,2584.0,2583.9,3.2078]
[1748631831255,0.77396,2583.6,2583.5,6.26075798]
[1748631832263,0.77396,2583.6,2583.5,3.20780181]
[1748631833263,0.77396,2583.6,2583.5,4.45020181]
[1748631835863,0.79162599,2583.6,2583.5,4.45020181]
[1748631836565,0.79162599,2583.6,2583.5,3.20780181]
[1748631836758,0.79162599,2583.6,2583.5,4.44800181]
[1748631838268,0.79162599,2583.6,2583.5,3.20780181]
[1748631838462,2.66062599,2583.6,2583.5,1.81e-06]
[1748631840357,7.66062599,2583.6,2583.5,1.81e-06]
[1748631840765,0.77405,2583.3,2583.2,2.28078119]
[1748631840962,5.16105,2583.3,2583.2,2.28078119]
[1748631841158,5.16105,2583.3,2582.7,3.8285]
[1748631841159,0.7742,2582.8,2582.7,3.2078]
[1748631841960,0.7742,2582.8,2582.7,3.98203]
[1748631842267,0.7742,2582.8,2582.7,3.2078]
[1748631842467,0.7742,2582.8,2582.7,3.98203]
[1748631842672,0.7742,2582.8,2582.7,3.2078]
[1748631846073,0.00580181,2583.0,2582.7,3.2078]
[1748631846370,0.77417,2582.9,2582.8,1.9596]
[1748631848572,0.77417,2582.9,2582.8,1.3488]
[1748631851179,0.7742,2582.8,2582.7,3.2078]
[1748631852174,5.1622,2582.8,2582.7,3.2078]
[1748631852569,5.1622,2582.8,2582.7,4.5341]
[1748631852879,0.77418,2582.9,2582.8,0.77418]
[1748631853177,0.00580181,2583.0,2582.9,0.77417]
[1748631853482,0.77403,2583.4,2583.3,0.77405]
[1748631853675,0.77403,2583.4,2583.3,3.98185]
[1748631853885,0.01766599,2583.6,2583.3,3.2078]
[1748631854084,0.77399,2583.5,2583.4,1.309]
[1748631858385,0.77408,2583.2,2583.1,0.6722]
[1748631858894,0.77406,2583.3,2583.2,0.77406]
[1748631859182,0.77408,2583.2,2583.1,1.44629]
[1748631859879,0.77408,2583.2,2583.1,2.74789]
[1748631860078,0.77408,2583.2,2583.1,1.9738]
[1748631860681,0.96648,2583.2,2583.1,1.9738]
[1748631862879,0.96648,2583.2,2583.1,1.3016]
[1748631863889,0.96648,2583.2,2583.1,2.07571]
[1748631864190,0.96648,2583.2,2583.1,1.3016]
[1748631865683,0.1924,2583.2,2583.1,2.07571]
[1748631866090,0.1924,2583.2,2583.1,7.07571]
[1748631868395,0.96648,2583.2,2583.1,7.07571]
[1748631868598,0.1924,2583.2,2583.1,7.07571]
[1748631869686,0.1924,2583.2,2583.1,2.07571]
[1748631869992,0.1924,2583.2,2583.1,1.3016]
[1748631869993,0.96648,2583.2,2583.1,1.3016]
[1748631871289,0.77411,2583.1,2583.0,3.2078]
[1748631871493,0.77411,2583.1,2583.0,4.4943]
[1748631871895,0.77411,2583.1,2583.0,3.2078]
[1748631872492,5.04111,2583.1,2583.0,3.2078]
[1748631872888,6.26801,2583.1,2583.0,5.49149711]
[1748631873289,6.26801,2583.1,2583.0,2.28369711]
[1748631873593,0.7742,2582.8,2582.7,3.2078]
[1748631876095,0.77426,2582.6,2582.5,0.00580181]
[1748631877194,5.04126,2582.6,2582.5,0.00580181]
[1748631878288,5.04126,2582.6,2582.5,1.22900181]
[1748631878903,5.04226,2582.6,2582.5,1.22900181]
[1748631881092,5.04226,2582.6,2582.5,0.00580181]
[1748631881603,6.33886,2582.6,2582.5,0.00580181]
[1748631883305,0.7745,2581.8,2581.7,6.26075617]
[1748631883499,0.7745,2581.8,2581.7,4.35605617]
[1748631884003,0.77453,2581.7,2581.6,3.05295617]
[1748631885104,0.77459,2581.5,2581.4,4.50300181]
[1748631885497,0.77459,2581.5,2581.4,3.21360181]
[1748631885801,0.77459,2581.5,2581.4,0.00580181]
[1748631887100,0.77471,2581.1,2581.0,3.2078]
[1748631887604,0.77474,2581.0,2580.9,0.6698]
[1748631887795,1.8996,2581.4,2580.9,0.6698]
[1748631887998,0.77467,2581.3,2581.0,3.0151]
[1748631888299,4.175,2581.4,2581.0,3.0151]
[1748631888508,0.77471,2581.1,2581.0,3.78984]
[1748631889001,0.77471,2581.1,2581.0,3.78981]
[1748631889208,0.77471,2581.1,2581.0,3.0151]
[1748631890697,6.93685,2581.1,2580.5,3.05295617]
[1748631890906,0.77486,2580.6,2580.5,3.05295617]
[1748631891200,4.94986,2580.6,2580.5,3.05295617]
[1748631891401,11.27666,2580.6,2580.5,8.8e-06]
[1748631891602,11.27666,2580.6,2579.8,3.2078]
[1748631891603,1.93722,2580.5,2579.8,3.2078]
[1748631891905,3.2078,2580.2,2579.9,0.0058135]
[1748631892106,0.77504,2580.0,2579.9,0.0058135]
[1748631894907,4.176,2580.0,2579.9,0.0058135]
[1748631895102,1.93767,2579.9,2579.2,6.25534116]
[1748631895308,0.77522,2579.4,2579.2,2.27227116]
[1748631895606,3.2078,2579.6,2579.3,0.77524]
[1748631895809,0.77522,2579.4,2579.2,3.04753116]
[1748631896112,0.77525,2579.3,2579.1,1.399]
[1748631896611,3.2078,2579.6,2579.1,1.399]
[1748631896807,0.77526,2579.3,2579.2,3.2078]
[1748631897710,0.77524,2579.4,2579.2,3.2078]
[1748631897908,0.77524,2579.4,2579.2,3.98308]
[1748631898109,3.8544,2579.6,2579.2,3.2078]
[1748631898310,0.77525,2579.3,2579.2,3.2078]
[1748631899008,3.8544,2579.6,2579.2,3.2078]
[1748631899215,0.7752,2579.5,2579.2,3.2078]
[1748631899412,3.98296,2579.6,2579.2,3.2078]
[1748631899619,3.98296,2579.6,2579.4,0.77519]
[1748631899810,0.1937,2579.8,2579.7,0.77513]
[1748631900010,0.77513,2579.7,2579.6,0.77513]
[1748631900819,0.1937,2579.8,2579.7,0.77513]
[1748631901319,0.77514,2579.7,2579.6,0.77514]
[1748631901713,0.96882,2579.8,2579.7,0.77513]
[1748631901912,0.1937,2579.8,2579.7,0.77513]
[1748631902114,0.1937,2579.8,2579.7,5.77513]
[1748631902811,0.775,2580.2,2580.1,0.77499]
[1748631903017,0.77501,2580.1,2580.0,3.98282]
[1748631903214,0.77501,2580.1,2580.0,4.4314]
[1748631903517,0.77501,2580.1,2580.0,1.2236]
[1748631903914,0.77499,2580.2,2580.1,0.77497]
[1748631904113,0.77497,2580.3,2580.2,0.77495]
[1748631904320,0.77501,2580.1,2580.0,1.99862]
[1748631904914,0.77495,2580.3,2580.2,0.77495]
[1748631906320,0.77498,2580.2,2580.1,1.42928]
[1748631907416,0.77498,2580.2,2580.1,0.6543]
[1748631907924,0.77498,2580.2,2580.1,1.42931]
[1748631908527,0.0058135,2580.4,2580.2,0.77495]
[1748631908528,0.77496,2580.3,2580.2,0.77495]
[1748631908730,0.77498,2580.2,2580.1,1.42928]
[1748631909325,0.77497,2580.3,2580.2,0.77495]
[1748631909824,0.77496,2580.3,2580.2,0.77495]
[1748631910023,0.0058135,2580.4,2580.3,0.77495]
[1748631910223,0.77476,2581.0,2580.3,3.2078]
[1748631910420,0.77473,2581.1,2581.0,0.77472]
[1748631910824,0.77468,2581.2,2581.1,0.77468]
[1748631911020,7.41758771,2581.5,2581.0,3.2078]
[1748631911221,0.77471,2581.1,2581.0,3.2136135]
[1748631911425,9.35990121,2581.5,2581.0,3.2136135]
[1748631911632,0.77467,2581.3,2581.2,0.77467]
[1748631912231,0.77471,2581.2,2581.0,3.2136135]
[1748631912422,0.74471,2581.2,2581.1,0.77471]
[1748631912922,0.77466,2581.3,2581.2,0.77464]
[1748631913122,0.7747,2581.2,2581.1,0.77468]
[1748631913323,0.77471,2581.1,2581.0,3.2136135]
[1748631914129,0.77471,2581.1,2581.0,3.9883535]
[1748631914526,0.77468,2581.2,2581.1,0.77468]
[1748631914926,0.77471,2581.1,2581.0,3.9883235]
[1748631915532,0.7747,2581.2,2581.1,0.77469]
[1748631916320,0.77471,2581.1,2581.0,3.9883235]
[1748631916524,0.77471,2581.1,2581.0,3.2136135]
[1748631916721,0.77469,2581.2,2581.1,0.77467]
[1748631916930,0.77471,2581.1,2581.0,3.9883335]
[1748631917832,0.77468,2581.2,2581.1,0.77467]
[1748631918132,0.0058135,2581.5,2581.1,1.93677]
[1748631918329,0.0058135,2581.5,2581.0,3.2136135]
[1748631918536,0.77466,2581.3,2581.2,0.77464]
[1748631919931,0.7747,2581.2,2581.1,0.77469]
[1748631920432,0.7747,2581.2,2581.1,5.77469]
[1748631921534,0.7747,2581.2,2581.1,0.77469]
[1748631922736,1.9423135,2581.5,2581.0,3.2136135]
[1748631922737,0.77467,2581.3,2581.2,0.77465]
[1748631924138,0.77464,2581.4,2581.3,0.77462]
[1748631924440,0.77464,2581.4,2581.3,3.2078]
[1748631925340,0.77464,2581.4,2581.3,4.5323]
[1748631925540,0.77471,2581.1,2581.0,5.48588466]
[1748631925741,0.77471,2581.1,2581.0,7.58512466]
[1748631926241,0.77471,2581.1,2581.0,5.3128535]
[1748631926843,0.77471,2581.1,2581.0,2.1050535]
[1748631927344,0.77471,2581.1,2581.0,7.58512466]
[1748631928053,1.9366,2581.4,2581.1,0.77466]
[1748631928054,0.7747,2581.2,2581.1,0.77466]
[1748631928553,0.7747,2581.2,2581.1,3.98246]
[1748631930248,0.7747,2581.2,2581.1,3.98251]
[1748631930647,0.0058135,2581.5,2581.2,1.9367]
[1748631930851,0.7804235,2581.5,2581.4,0.77462]
[1748631931051,0.77462,2581.4,2581.3,2.00692]
[1748631931452,0.77462,2581.4,2581.3,4.28827493]
[1748631932852,0.77462,2581.4,2581.3,2.00692]
[1748631934656,0.77468,2581.2,2581.1,3.2078]
[1748631934855,0.77468,2581.2,2581.1,4.5499]
[1748631936647,0.77468,2581.2,2581.1,5.32461]
[1748631937249,0.77468,2581.2,2581.1,4.5499]
[1748631937649,0.77468,2581.2,2581.1,3.2078]
[1748631937845,0.77471,2581.1,2581.0,0.0058135]
[1748631938350,0.7748,2580.8,2580.7,3.02222526]
[1748631938854,9.9548,2580.8,2580.7,3.02222526]
[1748631939056,9.9548,2580.8,2580.7,2.17971526]
[1748631939255,9.9548,2580.8,2580.7,1.37516526]
[1748631939454,1.93745,2580.2,2579.5,3.2078]
[1748631939658,0.77513,2579.7,2579.6,1.35783301]
[1748631940758,0.77513,2579.7,2579.6,0.00393301]
[1748631946465,3.2078,2579.9,2579.6,0.00393301]
[1748631946663,0.7751,2579.8,2579.7,0.7751]
[1748631946861,0.7751,2579.8,2579.7,2.0823]
[1748631947161,0.7751,2579.8,2579.7,1.3072]
[1748631948265,0.77513,2579.7,2579.6,0.00393301]
[1748631949262,1.41553,2579.7,2579.6,0.00393301]
[1748631950468,0.77513,2579.7,2579.6,2.03579301]
[1748631950669,0.77513,2579.7,2579.6,1.26063301]
[1748631950967,1.9376,2580.0,2579.6,1.26063301]
[1748631951269,0.77507,2580.0,2579.9,0.77505]
[1748631951863,0.77507,2579.9,2579.8,1.2594]
[1748631952560,0.77507,2579.9,2579.8,2.0345]
[1748631953260,0.77507,2579.9,2579.8,1.2594]
[1748631956864,0.77507,2579.9,2579.8,2.0345]
[1748631958767,0.77507,2579.9,2579.8,1.2594]
[1748631961467,0.77506,2580.0,2579.8,1.2594]
[1748631961663,0.0058135,2580.2,2580.1,0.77501]
[1748631961870,0.0058135,2580.2,2580.1,3.98281]
[1748631962577,0.7807935,2580.2,2580.1,3.98281]
[1748631963169,0.77501,2580.1,2580.0,1.9324]
[1748631963475,0.77501,2580.1,2580.0,5.1402]
[1748631963675,0.77501,2580.1,2580.0,5.91524]
[1748631964670,0.77501,2580.1,2580.0,5.1402]
[1748631964873,0.7751,2579.8,2579.7,0.6271]
[1748631965067,1.93763,2580.0,2579.6,0.00393301]
[1748631965068,5.14543,2580.0,2579.6,0.00393301]
[1748631965378,0.77513,2579.7,2579.6,0.00393301]
[1748631966776,3.98293,2579.7,2579.6,0.00393301]
[1748631971676,3.98293,2579.7,2579.6,0.77909301]
[1748631971880,0.77512,2579.8,2579.7,0.7751]
[1748631972082,0.77512,2579.8,2579.7,2.7406]
[1748631972378,0.77508,2579.9,2579.8,0.77507]
[1748631972579,3.98286,2580.0,2579.9,0.77507]
[1748631972781,0.77507,2579.9,2579.8,2.09067]
[1748631973185,3.2078,2580.0,2579.9,0.77507]
[1748631973386,0.77502,2580.1,2580.0,0.77501]
[1748631973584,0.77501,2580.1,2580.0,0.77501]
[1748631973882,0.77502,2580.1,2580.0,0.77501]
[1748631974885,0.77504,2580.0,2579.9,2.09065]
[1748631976984,0.77504,2580.0,2579.9,1.3156]
[1748631977679,0.77504,2580.0,2579.9,2.09067]
[1748631977883,0.77504,2580.0,2579.9,1.3156]
[1748631978988,3.2078,2580.1,2579.7,3.2078]
[1748631979175,0.7751,2579.8,2579.7,0.7751]
[1748631979379,0.7751,2579.8,2579.7,2.005]
[1748631979783,0.7751,2579.8,2579.7,2.00503]
[1748631979985,0.7751,2579.8,2579.7,1.2299]
[1748631980185,0.77513,2579.7,2579.6,0.00393301]
[1748631980693,0.77512,2579.8,2579.7,0.77509]
[1748631980988,0.77512,2579.8,2579.7,2.00499]
[1748631982294,0.77512,2579.8,2579.7,2.00503]
[1748631983195,0.77512,2579.8,2579.7,1.2299]
[1748631983395,0.77512,2579.8,2579.7,2.00503]
[1748631985198,0.77508,2579.9,2579.8,0.77504]
[1748631985493,0.77508,2579.9,2579.8,1.38634]
[1748631986093,0.96878,2579.9,2579.8,1.38634]
[1748631986294,0.96878,2579.9,2579.8,0.6113]
[1748631986993,0.96878,2579.9,2579.8,1.9452]
[1748631987394,0.96878,2579.9,2579.8,1.3339]
[1748631989494,0.77513,2579.7,2579.6,0.00393301]
[1748631991991,0.77513,2579.7,2579.6,0.77909301]
[1748631992193,0.77513,2579.7,2579.6,0.00393301]
[1748631992498,0.77513,2579.7,2579.6,0.77909301]
[1748631993398,0.77513,2579.7,2579.6,1.43089301]
[1748631994099,0.77513,2579.7,2579.6,0.65573301]
[1748631994498,0.77512,2579.8,2579.7,0.7751]
[1748631994693,0.96879,2579.9,2579.8,0.7751]
[1748631995298,0.96879,2579.9,2579.7,2.01762]
[1748631995299,0.7751,2579.8,2579.7,2.01762]
[1748631997099,0.7751,2579.8,2579.7,1.2425]
[1748632000403,0.7751,2579.8,2579.7,2.01763]
[1748632001302,0.96879,2579.9,2579.8,0.7751]
[1748632001599,0.96877,2579.9,2579.8,2.079]
[1748632003001,0.96877,2579.9,2579.8,5.11722598]
[1748632005508,0.96877,2579.9,2579.8,4.34212598]
[1748632005899,0.96877,2579.9,2579.8,1.3039]
[1748632006299,0.7751,2579.8,2579.7,3.03822598]
[1748632007800,0.77513,2579.7,2579.6,0.00393301]
[1748632008007,1.44493,2579.7,2579.6,0.00393301]
[1748632013310,0.77513,2579.7,2579.6,0.00393301]
[1748632014609,0.77513,2579.7,2579.6,0.77909301]
[1748632014806,0.77513,2579.7,2579.6,1.39709301]
[1748632015402,0.77513,2579.7,2579.6,0.62193301]
[1748632017004,0.77513,2579.7,2579.6,0.00393301]
[1748632018311,0.96883,2579.7,2579.6,0.00393301]
[1748632019307,0.1937,2579.7,2579.6,0.77909301]
[1748632019508,0.96883,2579.7,2579.6,0.77909301]
[1748632019812,0.96883,2579.7,2579.6,0.00393301]
[1748632020415,0.96883,2579.7,2579.6,0.77909301]
[1748632020712,0.1937,2579.7,2579.6,0.77909301]
[1748632020911,0.96883,2579.7,2579.6,0.77909301]
[1748632021111,0.96883,2579.7,2579.6,0.00393301]
[1748632021312,0.96883,2579.7,2579.6,0.77909301]
[1748632021809,0.96883,2579.7,2579.6,0.00393301]
[1748632022108,0.96883,2579.7,2579.6,3.04215899]
[1748632022814,2.29133,2579.7,2579.6,3.04215899]
[1748632023114,6.36033,2579.7,2579.6,0.00393301]
[1748632024414,5.03783,2579.7,2579.6,0.00393301]
[1748632026416,0.96883,2579.7,2579.6,0.00393301]
[1748632027514,5.96883,2579.7,2579.6,3.01e-06]
[1748632027716,0.77534,2579.0,2578.9,3.03822598]
[1748632027919,3.98314,2579.0,2578.9,3.03822598]
[1748632028315,10.92904,2579.0,2578.9,3.03822598]
[1748632029016,0.77543,2578.7,2578.6,1.2453]
[1748632030619,0.0058135,2578.9,2578.8,0.7754]
[1748632030821,0.0058135,2578.9,2578.6,1.9001]
[1748632031023,0.0058135,2578.9,2578.8,0.7754]
[1748632031219,0.7812035,2578.9,2578.7,1.2398]
[1748632031420,0.7754,2578.8,2578.7,1.2398]
[1748632032018,3.9832,2578.8,2578.7,1.2398]
[1748632035526,0.7754,2578.8,2578.7,1.2398]
[1748632037526,0.0058135,2578.9,2578.7,1.2398]
[1748632037727,0.7754,2578.8,2578.7,1.2398]
[1748632043232,0.77543,2578.7,2578.6,0.6548]
[1748632045834,0.77546,2578.6,2578.5,1.3508]
[1748632049638,0.96936,2578.6,2578.5,1.3508]
[1748632050936,0.77552,2578.4,2578.3,3.2078]
[1748632051137,0.77555,2578.3,2578.2,0.6761]
[1748632051434,3.98335,2578.3,2578.2,0.6761]
[1748632051835,0.77555,2578.3,2578.2,0.6761]
[1748632052934,0.77555,2578.3,2578.2,1.45168]
[1748632053133,0.77555,2578.3,2578.2,0.6761]
[1748632060549,0.77561,2578.1,2578.0,6.24602598]
[1748632060746,0.77561,2578.1,2578.0,3.03822598]
[1748632061742,6.46492,2578.3,2577.8,0.6247]
[1748632061953,0.77567,2577.9,2577.8,0.6247]
[1748632062149,0.77579,2577.5,2577.4,10.31102598]
[1748632063150,0.77579,2577.5,2577.4,7.2728]
[1748632063350,0.77579,2577.5,2577.4,3.2078]
[1748632063850,0.77585,2577.3,2577.2,1.9354]
[1748632067151,0.77588,2577.2,2577.1,3.2078]
[1748632067453,0.77597,2576.9,2576.8,5.1453]
[1748632071453,0.77597,2576.9,2576.8,5.9213]
[1748632071746,0.77597,2576.9,2576.8,5.1453]
[1748632072753,0.77597,2576.9,2576.8,5.9213]
[1748632073248,0.77597,2576.9,2576.8,5.1453]
[1748632075857,0.96997,2576.9,2576.8,5.1453]
[1748632077154,0.96997,2576.9,2576.8,5.9213]
[1748632077552,0.96997,2576.9,2576.8,5.1453]
[1748632078460,0.96997,2576.9,2576.8,5.9213]
[1748632078758,0.194,2576.9,2576.8,5.9213]
[1748632080458,0.194,2576.9,2576.8,10.9213]
[1748632081351,0.0058135,2577.5,2577.4,0.77582]
[1748632081559,0.0058135,2577.5,2577.4,3.98362]
[1748632081754,0.0058135,2577.5,2577.4,14.30082]
[1748632082255,2.60273,2578.4,2577.7,1.9393]
[1748632082453,0.77561,2578.2,2578.1,3.2078]
[1748632082658,0.6559,2578.5,2578.1,3.2078]
[1748632082856,0.77553,2578.4,2578.3,3.98332]
[1748632083055,0.77553,2578.4,2578.3,3.8301]
[1748632083359,0.77553,2578.4,2578.3,0.6223]
[1748632085057,0.77553,2578.4,2578.3,1.9524]
[1748632088668,0.77553,2578.4,2578.3,2.72795]
[1748632088867,0.77553,2578.4,2578.3,5.93575]
[1748632089063,0.77553,2578.4,2578.3,5.1602]
[1748632091267,0.77553,2578.4,2578.3,5.93575]
[1748632091463,0.77553,2578.4,2578.3,5.1602]
[1748632093167,0.77553,2578.4,2578.3,5.93575]
[1748632095556,0.77553,2578.4,2578.3,5.1602]
[1748632096063,0.77553,2578.4,2578.3,5.93575]
[1748632097169,0.77553,2578.4,2578.3,5.1602]
[1748632097671,0.77558,2578.2,2578.1,0.0058135]
[1748632098264,2.72368,2578.2,2578.1,0.0058135]
[1748632099971,0.77558,2578.2,2578.1,0.0058135]
[1748632100272,0.77557,2578.3,2578.2,0.77555]
[1748632100473,0.77558,2578.2,2578.1,2.6520935]
[1748632101571,0.77558,2578.2,2578.1,1.2258135]
[1748632102768,0.77558,2578.2,2578.1,2.0014235]
[1748632106675,0.77553,2578.4,2578.3,0.77552]
[1748632106868,0.77553,2578.4,2578.3,3.98332]
[1748632107069,0.77553,2578.4,2578.3,5.97592]
[1748632107978,0.77553,2578.4,2578.3,5.2004]
[1748632108281,0.77553,2578.4,2578.3,3.2078]
[1748632110370,0.77553,2578.4,2578.3,7.02157598]
[1748632110567,0.77553,2578.4,2578.3,8.32177598]
[1748632111184,0.77553,2578.4,2578.3,5.11397598]
[1748632111480,0.77553,2578.4,2578.3,4.33842598]
[1748632112477,0.77553,2578.4,2578.3,5.11397598]
[1748632112886,0.77553,2578.4,2578.3,2.07575]
[1748632114381,0.77553,2578.4,2578.3,1.3002]
[1748632114783,0.0058135,2578.6,2578.3,6.3002]
[1748632114985,0.0058135,2578.6,2578.5,3.2078]
[1748632115180,0.0058135,2578.6,2578.5,4.4906]
[1748632115376,0.7812735,2578.6,2578.5,4.4906]
[1748632116085,0.7812735,2578.6,2578.5,1.2828]
[1748632121686,0.7812735,2578.6,2578.3,7.12963398]
[1748632121687,0.0058135,2578.6,2578.3,3.08063398]
[1748632121890,0.77552,2578.4,2578.3,1.31598398]
[1748632122089,0.77552,2578.4,2578.3,0.34120398]
[1748632122285,2.07922,2578.4,2578.3,3.98e-06]
[1748632122479,0.77558,2578.2,2578.1,7.48e-06]
[1748632122979,0.77573,2577.7,2577.6,3.2078]
[1748632123178,0.77576,2577.6,2577.5,4.049]
[1748632123485,0.77576,2577.6,2577.4,1.2727]
[1748632123486,0.77579,2577.5,2577.4,5.3217]
[1748632124088,0.77579,2577.5,2577.4,1.2727]
[1748632124294,0.77579,2577.5,2577.4,5.3217]
[1748632124790,0.77579,2577.5,2577.4,1.2727]
[1748632124987,0.77579,2577.5,2577.4,2.5342]
[1748632125381,0.77579,2577.5,2577.4,6.5832]
[1748632126491,0.77579,2577.5,2577.4,2.5342]
[1748632127091,0.77579,2577.5,2577.4,3.31002]
[1748632128894,0.77579,2577.5,2577.4,2.5342]
[1748632130394,0.77579,2577.5,2577.4,6.5742]
[1748632131295,0.77579,2577.5,2577.4,6.64413857]
[1748632132394,0.77579,2577.5,2577.4,2.60413857]
[1748632132590,0.77579,2577.5,2577.4,6.64413857]
[1748632133694,0.77579,2577.5,2577.4,2.60413857]
[1748632133992,0.77579,2577.5,2577.4,6.64413857]
[1748632134896,0.77579,2577.5,2577.4,2.60413857]
[1748632135097,0.77579,2577.5,2577.4,6.64513857]
[1748632137601,0.77579,2577.5,2577.4,2.60413857]
[1748632137801,0.77579,2577.5,2577.4,6.64513857]
[1748632138402,0.77579,2577.5,2577.4,2.60413857]
[1748632138603,0.77579,2577.5,2577.4,6.64513857]
[1748632139096,0.76910041,2577.5,2577.4,6.64513857]
[1748632139399,0.76910041,2577.5,2577.4,7.42095857]
[1748632139899,1.93917,2578.0,2577.4,13.58468857]
[1748632140203,0.77564,2578.0,2577.9,3.98342]
[1748632140496,0.7756,2578.2,2578.1,0.77556]
[1748632140699,0.77561,2578.1,2578.0,2.10013]
[1748632140999,0.77561,2578.1,2578.0,2.5634]
[1748632141599,0.77564,2578.0,2577.9,3.07681992]
[1748632141904,0.7757,2577.8,2577.7,7.11681992]
[1748632142200,0.9512,2577.8,2577.7,3.07681992]
[1748632142704,0.77579,2577.5,2577.4,6.6034]
[1748632143502,0.77579,2577.5,2577.4,6.67333857]
[1748632144003,0.77579,2577.5,2577.4,7.44915857]
[1748632144204,0.77579,2577.5,2577.4,6.67333857]
[1748632144506,0.77579,2577.5,2577.4,6.6034]
[1748632145001,0.77582,2577.4,2577.3,3.2078]
[1748632145203,0.77582,2577.4,2577.3,3.8275]
[1748632146101,0.77582,2577.4,2577.3,4.60335]
[1748632146301,0.77582,2577.4,2577.3,6.54555]
[1748632146603,0.77582,2577.4,2577.3,5.7697]
[1748632148208,0.77582,2577.4,2577.3,5.15]
[1748632148902,0.77585,2577.3,2577.2,3.07681992]
[1748632149298,5.77585,2577.3,2577.2,0.76731642]
[1748632149499,5.77585,2577.3,2576.7,3.2078]
[1748632149500,0.776,2576.8,2576.7,3.2078]
[1748632151107,1.4447,2576.8,2576.7,3.2078]
[1748632152710,0.77606,2576.6,2576.5,4.81709]
[1748632153004,0.77606,2576.6,2576.5,8.02489]
[1748632153209,0.77606,2576.6,2576.5,7.2488]
[1748632153505,2.6058935,2577.0,2576.5,7.2488]
[1748632153712,0.77599,2576.9,2576.8,0.77597]
[1748632154005,0.7817535,2577.0,2576.9,1.39527]
[1748632154200,1.93936,2577.7,2576.9,1.39527]
[1748632154201,3.2078,2577.7,2576.9,7.8681]
[1748632154409,0.77573,2577.7,2577.6,3.2078]
[1748632156109,2.00023,2577.7,2577.6,3.2078]
[1748632157010,0.77576,2577.6,2577.5,4.6603]
[1748632157310,0.77582,2577.4,2577.3,3.2078]
[1748632157511,0.77582,2577.4,2577.3,7.2398]
[1748632157804,0.77582,2577.4,2577.3,3.2078]
[1748632158005,0.77582,2577.4,2577.1,4.032]
[1748632158006,0.77588,2577.2,2577.1,4.6864]
[1748632158208,0.77588,2577.2,2577.0,3.80920209]
[1748632158209,0.77591,2577.1,2577.0,3.80920209]
[1748632158410,0.77591,2577.1,2577.0,7.84120209]
[1748632158812,0.77591,2577.1,2577.0,8.61714209]
[1748632159115,0.77591,2577.1,2577.0,4.032]
[1748632161117,0.77591,2577.1,2577.0,3.08120484]
[1748632161411,2.09021,2577.1,2577.0,3.08120484]
[1748632161713,0.77594,2577.0,2576.9,3.2078]
[1748632161907,2.09024,2577.0,2576.9,3.2078]
[1748632164917,0.776,2576.8,2576.7,5.2752135]
[1748632168328,0.776,2576.8,2576.7,6.0512435]
[1748632168822,3.2078,2577.3,2576.7,6.0512435]
[1748632169124,0.77582,2577.5,2577.4,0.77579]
[1748632169329,0.77582,2577.4,2577.3,8.01563]
[1748632169531,0.77582,2577.4,2577.3,9.23583]
[1748632169829,0.77581,2577.5,2577.4,0.77579]
[1748632170023,0.77581,2577.5,2577.4,2.09629]
[1748632170530,0.77581,2577.5,2577.4,1.3205]
[1748632170829,0.95141,2577.5,2577.4,1.3205]
[1748632174332,0.95141,2577.5,2577.4,2.09632]
[1748632174631,0.95141,2577.5,2577.4,1.3205]
[1748632175026,0.95141,2577.5,2577.4,0.06993857]
[1748632176032,0.77582,2577.4,2577.3,3.08120484]
[1748632176231,0.77591,2577.1,2577.0,7.88913484]
[1748632176535,0.77591,2577.1,2577.0,9.14943484]
[1748632179336,0.77591,2577.1,2577.0,8.37350484]